Cogmind - Beta 10.2 @@@ ROGUE MODE // 2020.11.15 @ 00:12:58 // Halloween2020/ForbiddenLore Player: Salade Result: Self-destructed Performance ------------- Evolutions (3) 1500 Regions Visited (8) 1600 Robots Destroyed (44) 220 Value Destroyed (1618) 1618 Prototype IDs (1) 20 Alien Tech Used (0) 0 Bonus (1060) 1060 TOTAL SCORE: 6018 Bonus ------- High Alert Combat Kills 11 Follower Combat Kills 49 Entered Garrisons 200 Used RIF Installer 500 Aligned with FarCom 300 Cogmind --------- Core Integrity 608/700 Matter 300/300 Energy 160/160 System Corruption 0% Temperature Cool (9) Movement Walking (150) Ox1 Location -7/Factory Parts ------- > --- POWER (1) -------- Light Nuclear Core > --- PROPULSION (5) --- Improved Aluminum Leg Improved Aluminum Leg Improved Aluminum Leg Improved Aluminum Leg Improved Aluminum Leg > --- UTILITY (3) ------ Humpback Targeting Computer > --- WEAPON (4) ------- EM Pulse Cannon Assault Rifle Gauss Rifle Flak Gun > --- INVENTORY (24) --- Light Nuclear Core Light Treads Medium Treads Improved Aluminum Leg Improved Aluminum Leg Improved Heat Sink Humpback Medium Matter Pod (100) Experimental Sensor Array Modified TNC Targeting Computer Recoil Stabilizer Cloak of Protection Light Armor Plating System Shield Recalibrator Improved Reclamation Unit Electrolaser Ion Cannon Firepult Light Assault Rifle Grenade Launcher Peak State ------------ > --- POWER ------------ Light Nuclear Core > --- PROPULSION ------- Improved Aluminum Leg Improved Aluminum Leg Improved Aluminum Leg Improved Aluminum Leg Improved Aluminum Leg > --- UTILITY ---------- Humpback Targeting Computer > --- WEAPON ----------- EM Pulse Cannon Assault Rifle Gauss Rifle Flak Gun > --- INVENTORY -------- Light Nuclear Core Light Treads Medium Treads Improved Aluminum Leg Improved Aluminum Leg Improved Heat Sink Humpback Medium Matter Pod Experimental Sensor Array Modified TNC Targeting Computer Recoil Stabilizer Cloak of Protection Light Armor Plating System Shield Recalibrator Improved Reclamation Unit Electrolaser Ion Cannon Firepult Light Assault Rifle Grenade Launcher [Rating: 36] Favorites ----------- Power Ion Engine Engine Ion Engine Power Core Light Nuclear Core Propulsion Light Treads Treads Light Treads Leg Aluminum Leg Utility Humpback Storage Humpback Processor Targeting Computer Weapon Light Assault Rifle Energy Gun Electrolaser Energy Cannon EM Pulse Cannon Ballistic Gun Light Assault Rifle Ballistic Cannon Light Cannon Launcher Improved Grenade Launcher Build | -11 -10 -10 -10 -9 -8 -8 -8 -7 ------- Run | Scr Mat Min Exi Min Mat Gar Mat Fac Slots Evolved 6 | . . . . . 4 . . 2 Power . | . . . . . . . . . Propulsion 3 | . . . . . 2 . . 1 Utility 1 | . . . . . . . . 1 Weapon 2 | . . . . . 2 . . . Parts Attached 61 | 6 2 . 7 4 23 4 4 11 Power 4 | 1 . . . 1 1 . 1 . Engine 2 | 1 . . . 1 . . . . Core 2 | . . . . . 1 . 1 . Reactor . | . . . . . . . . . Propulsion 22 | 2 . . . 1 8 3 2 6 Treads 7 | 2 . . . . 3 2 . . Leg 15 | . . . . 1 5 1 2 6 Wheel . | . . . . . . . . . Hover . | . . . . . . . . . Flight . | . . . . . . . . . Utility 5 | 1 1 . 2 . . . . 1 Device . | . . . . . . . . . Storage 4 | 1 1 . 2 . . . . . Processor 1 | . . . . . . . . 1 Hackware . | . . . . . . . . . Protection . | . . . . . . . . . Artifact . | . . . . . . . . . Weapon 30 | 2 1 . 5 2 14 1 1 4 Energy Gun 5 | 1 . . 1 . 2 . 1 . Energy Cannon 5 | . . . 2 . 2 . . 1 Ballistic Gun 15 | 1 . . 1 2 8 . . 3 Ballistic Cannon 2 | . 1 . 1 . . . . . Launcher 3 | . . . . . 2 1 . . Special Weapon . | . . . . . . . . . Impact Weapon . | . . . . . . . . . Slashing Weapon . | . . . . . . . . . Piercing Weapon . | . . . . . . . . . Special Melee Weapon . | . . . . . . . . . Unidentified Prototypes 1 | . . . 1 . . . . . Parts Lost 18 | . . . . 4 6 4 2 2 Power 2 | . . . . 1 . 1 . . Propulsion 7 | . . . . 1 2 3 1 . Utility . | . . . . . . . . . Weapon 9 | . . . . 2 4 . 1 2 Highest Loss Streak 4 | . . . . 2 4 4 2 2 Average Slot Usage (%) 87 | . 90 100 97 79 89 84 83 90 Engine 7 | . 14 14 14 13 4 . . . Core 2 | . . . . . 4 4 3 7 Treads 17 | . 28 28 28 15 13 22 22 3 Leg 15 | . . . . 12 22 12 13 34 Storage 13 | . 19 28 25 14 9 9 9 7 Energy Gun 3 | . 2 . 7 . 4 4 4 3 Ballistic Gun 21 | . 14 14 7 18 30 27 21 19 Ballistic Cannon 3 | . 11 14 13 4 . . . . Launcher 1 | . . . . . . 4 9 1 Naked Turns . | . . . . . . . . . Heaviest Build 101 | 11 29 29 91 88 97 95 99 101 Greatest Support 72 | 40 40 40 40 40 72 60 60 65 Greatest Overweight (x) 9 | . . . 2 4 4 2 9 7 Average Overweight (x) 1 | . . . . 3 1 1 1 1 Largest Inventory Capacity 24 | 6 12 12 24 24 24 24 24 24 Average Capacity 21 | 5 8 12 13 24 24 24 24 24 Most Carried 24 | 4 12 12 16 23 24 24 22 24 Average Carried 18 | 2 6 12 12 19 23 23 21 22 Final Capacity 24 | 6 12 12 24 24 24 24 24 24 Final Carried 24 | 4 12 12 16 23 24 22 21 24 Class Distribution -------------------- 35% | Hauler-Mutant 21% | Scavenger-Skirmisher 20% | Mutant 10% | Hauler-Skirmisher 8% | Hauler-Gunner 3% | Scavenger-Gunner Dominant Class ---------------- Mutant | -10/Materials Mutant | -10/Mines Mutant | -10/Exiles Hauler-Mutant | -9/Mines Scavenger-Skirmisher | -8/Materials Hauler-Skirmisher | -8/Garrison Scavenger-Skirmisher | -8/Materials Hauler-Gunner | -7/Factory Resources | -11 -10 -10 -10 -9 -8 -8 -8 -7 ----------- Run | Scr Mat Min Exi Min Mat Gar Mat Fac Matter Collected 1601 | 215 130 24 52 189 458 122 152 259 Remotely . | . . . . . . . . . Salvage Created 1563 | . 130 . . 104 475 188 350 316 Parts 80 | . 6 . . 6 30 9 16 13 Haulers Intercepted . | . . . . . . . . . Recyclers Shooed . | . . . . . . . . . Parts Field Recycled . | . . . . . . . . . Retrieved Matter . | . . . . . . . . . Parts Self-Destructed . | . . . . . . . . . Prevented . | . . . . . . . . . Kills | -11 -10 -10 -10 -9 -8 -8 -8 -7 ------- Run | Scr Mat Min Exi Min Mat Gar Mat Fac Combat Hostiles Destroyed 44 | . 5 . . 6 12 7 9 5 Guns 29 | . 3 . . . 9 4 9 4 Cannons 10 | . 2 . . 6 2 . . . AOE 4 | . . . . . 1 3 . . Classes Destroyed 6 | . 2 . . . 2 1 . 1 Swarmer 15 | . 3 . . 3 3 3 3 . Grunt 16 | . 2 . . 3 4 2 4 1 Duelist 2 | . . . . . . 2 . . Sentry 7 | . . . . . 3 . 2 2 Hunter 3 | . . . . . 2 . . 1 Programmer 1 | . . . . . . . . 1 Best Kill Streak 5 | . 5 . . 3 3 5 4 1 Combat Bots Only 5 | . 5 . . 3 3 5 4 1 Max Kills in Single Turn 2 | . 1 . . 1 1 2 2 1 Gunslinging . | . . . . . . . . . Exploded 2 | . . . . . 1 2 . . Melee . | . . . . . . . . . Uniques/NPCs Destroyed . | . . . . . . . . . Combat | -11 -10 -10 -10 -9 -8 -8 -8 -7 -------- Run | Scr Mat Min Exi Min Mat Gar Mat Fac Damage Taken 3207 | . 209 . . 474 1268 260 337 659 Core 355 | . 29 . . 47 136 35 16 92 Absorbed by Shields . | . . . . . . . . . Core Remaining (%) 78 | 100 . . . 69 . . 66 . Volleys Fired 128 | . 23 . . 27 32 12 18 16 Largest 4 | . 2 . . 2 4 4 3 4 Hottest 139 | . 60 . . 100 139 131 111 139 Shots Fired 342 | . 42 . . 31 114 45 49 61 Gun 272 | . 24 . . 4 103 42 49 50 Cannon 61 | . 18 . . 27 5 . . 11 Launcher 9 | . . . . . 6 3 . . Special . | . . . . . . . . . Kinetic 274 | . 37 . . 27 92 36 37 45 Thermal 48 | . 5 . . 4 16 6 12 5 Explosive 9 | . . . . . 6 3 . . Electromagnetic 11 | . . . . . . . . 11 Robot Hit Streak 16 | . 8 . . 5 16 15 12 8 Robot Miss Streak 6 | . 4 . . 3 2 2 6 3 Penetration Max 1 | . . . . . . 1 1 . Secondary Targets 4 | . . . . . 1 2 1 . Max Gunslinging Chain 1 | . . . . . 1 1 1 . Shots Hit Robots 219 | . 16 . . 21 77 31 31 43 Core Hits 96 | . 9 . . 7 32 15 17 16 Critical Hits 4 | . . . . 2 . . 2 . Critical Kills . | . . . . . . . . . Critical Parts Destroyed 4 | . . . . 2 . . 2 . Melee Attacks . | . . . . . . . . . Impact . | . . . . . . . . . Slashing . | . . . . . . . . . Piercing . | . . . . . . . . . Sneak Attacks . | . . . . . . . . . Combat Hostiles . | . . . . . . . . . Follow-up Attacks . | . . . . . . . . . Damage Inflicted 3762 | . 234 . . 410 1020 757 618 723 Guns 2355 | . 83 . . 48 659 394 613 558 Cannons 739 | . 151 . . 356 67 . . 165 Explosions 599 | . . . . . 236 363 . . Melee . | . . . . . . . . . Ramming 69 | . . . . 6 58 . 5 . Kinetic 2408 | . 234 . . 356 521 327 463 507 Thermal 521 | . . . . 48 205 67 150 51 Explosive 599 | . . . . . 236 363 . . Electromagnetic 165 | . . . . . . . . 165 Impact . | . . . . . . . . . Slashing . | . . . . . . . . . Piercing . | . . . . . . . . . Highest Corruption . | . . . . . . . . . Average Corruption . | . . . . . . . . . Corruption Purged . | . . . . . . . . . Overload Shots . | . . . . . . . . . Overflow Damage 18 | . 18 . . . . . . . Projectiles 18 | . 18 . . . . . . . Explosions . | . . . . . . . . . Melee . | . . . . . . . . . Knockbacks 9 | . 5 . . 4 . . . . Impact . | . . . . . . . . . Kinetic 9 | . 5 . . 4 . . . . Secondary . | . . . . . . . . . Self-Inflicted Damage 80 | . . . . . 80 . . . Shots 3 | . . . . . 3 . . . Rammed 9 | . . . . 3 4 . 2 . Targets Rammed 9 | . . . . 3 4 . 2 . Kicked . | . . . . . . . . . Crushed . | . . . . . . . . . Highest Temperature 368 | . 40 . . 267 368 343 212 255 Average Temperature 103 | . 17 . . 185 97 149 107 89 Received Heat Transfer 897 | . 21 . . 201 279 108 117 171 Effects 5 | . . . . 1 4 . . . Energy Bleed 2 | . . . . 1 1 . . . Interference 2 | . . . . . 2 . . . Damage (minor) 1 | . . . . . 1 . . . Siege Activations . | . . . . . . . . . Robots Corrupted 1 | . . . . . . . . 1 Combat Hostiles 1 | . . . . . . . . 1 Parts Fried 2 | . . . . . . . . 2 Impact Corruptions . | . . . . . . . . . Robots Melted . | . . . . . . . . . Combat Hostiles . | . . . . . . . . . Parts Melted . | . . . . . . . . . Heat Transferred 1110 | . . . . 111 407 148 333 111 Parts Sabotaged . | . . . . . . . . . Parts Stolen . | . . . . . . . . . Parts Stripped . | . . . . . . . . . Power Chain Reactions . | . . . . . . . . . Missiles Intercepted . | . . . . . . . . . Alert | -11 -10 -10 -10 -9 -8 -8 -8 -7 ------- Run | Scr Mat Min Exi Min Mat Gar Mat Fac Peak Influence 415 | . 180 . . 110 353 311 415 135 Initial 179 | . . . . . . 179 151 29 Average 111 | . 50 . . 52 152 242 259 44 Maximum Alert Level 2 | . . . . . 1 1 2 . Low Security (%) 75 | 100 100 100 . 100 44 52 45 100 Level 1 23 | . . . . . 55 47 36 . Level 2 1 | . . . . . . . 18 . Level 3 . | . . . . . . . . . Level 4 . | . . . . . . . . . Level 5 . | . . . . . . . . . High Security . | . . . . . . . . . Max Security . | . . . . . . . . . Squads Dispatched 4 | . . . . . . . 1 3 Investigation . | . . . . . . . . . Extermination 1 | . . . . . . . . 1 Reinforcement 3 | . . . . . . . 1 2 Assault . | . . . . . . . . . Garrison . | . . . . . . . . . Intercept . | . . . . . . . . . Construction Impeded . | . . . . . . . . . Haulers Reinforced . | . . . . . . . . . Stealth | -11 -10 -10 -10 -9 -8 -8 -8 -7 --------- Run | Scr Mat Min Exi Min Mat Gar Mat Fac Distress Signals 11 | . 1 . . . 7 . 3 . Communications Jammed . | . . . . . . . . . Distress Signals . | . . . . . . . . . Times Spotted 78 | . 8 . . 9 29 7 15 10 Peak Tracking Total 8 | . 8 . . 3 4 4 8 5 Tactical Retreats 4 | . 1 . . . 2 . 1 . Traps | -11 -10 -10 -10 -9 -8 -8 -8 -7 ------- Run | Scr Mat Min Exi Min Mat Gar Mat Fac Traps Triggered 4 | . . . . . 1 2 . 1 Indirectly . | . . . . . . . . . Trap Hack Attempts . | . . . . . . . . . Triggered . | . . . . . . . . . Disarmed . | . . . . . . . . . Reprogrammed 5 | . 5 . . . . . . . Reused . | . . . . . . . . . Traps Extracted . | . . . . . . . . . Installed . | . . . . . . . . . Triggered . | . . . . . . . . . Exploded 2 | . . . 2 . . . . . Machines | -11 -10 -10 -10 -9 -8 -8 -8 -7 ---------- Run | Scr Mat Min Exi Min Mat Gar Mat Fac Machines Disabled 10 | . 2 . . . 3 1 1 3 Max in Single Turn 1 | . 1 . . . 1 1 1 1 Machines Sabotaged . | . . . . . . . . . Garrisons Compromised . | . . . . . . . . . Overloaded Fab Kills . | . . . . . . . . . Fab Network Shutdowns . | . . . . . . . . . Hacking | -11 -10 -10 -10 -9 -8 -8 -8 -7 --------- Run | Scr Mat Min Exi Min Mat Gar Mat Fac Machines Accessed 11 | . 2 . 4 . 3 . 1 1 Terminals 5 | . 2 . . . 1 . 1 1 Fabricators . | . . . . . . . . . Repair Stations . | . . . . . . . . . Recycling Units . | . . . . . . . . . Scanalyzers 1 | . . . . . 1 . . . Garrison Access 1 | . . . . . 1 . . . Total Hacks 59 | . 6 . 42 . 8 . 2 1 Successful 52 | . 1 . 42 . 8 . 1 . Failed 7 | . 5 . . . . . 1 1 Catastrophic 2 | . 1 . . . . . . 1 Database Lockouts . | . . . . . . . . . Manual 2 | . . . 2 . . . . . Terminals 11 | . 6 . . . 2 . 2 1 Fabricators . | . . . . . . . . . Repair Stations . | . . . . . . . . . Recycling Units . | . . . . . . . . . Scanalyzers 5 | . . . . . 5 . . . Garrison Access 1 | . . . . . 1 . . . Terminal Hacks 46 | . 1 . 42 . 2 . 1 . Record 43 | . . . 42 . 1 . . . Unreport Threat 1 | . . . . . . . 1 . Locate Traps 1 | . . . . . 1 . . . Reprogram Traps 1 | . 1 . . . . . . . Fabricator Hacks . | . . . . . . . . . Repair Station Hacks . | . . . . . . . . . Recycling Unit Hacks . | . . . . . . . . . Scanalyzer 5 | . . . . . 5 . . . Insert Component 4 | . . . . . 4 . . . Analyze 1 | . . . . . 1 . . . Garrison Access Hacks 1 | . . . . . 1 . . . Unlock Access 1 | . . . . . 1 . . . Unauthorized Hacks . | . . . . . . . . . Terminals . | . . . . . . . . . Fabricators . | . . . . . . . . . Repair Stations . | . . . . . . . . . Recycling Units . | . . . . . . . . . Scanalyzers . | . . . . . . . . . Garrison Access . | . . . . . . . . . Data Cores Recovered . | . . . . . . . . . Used . | . . . . . . . . . Hacking Detections 6 | . 2 . . . 2 . 1 1 Full Trace Events . | . . . . . . . . . Feedback Events . | . . . . . . . . . Feedback Blocked . | . . . . . . . . . Robot Schematics Acquired . | . . . . . . . . . Robots Built . | . . . . . . . . . Matter . | . . . . . . . . . Time . | . . . . . . . . . Total Robot Build Rating . | . . . . . . . . . Part Schematics Acquired 1 | . . . . . 1 . . . Parts Built . | . . . . . . . . . Matter . | . . . . . . . . . Time . | . . . . . . . . . Total Part Build Rating . | . . . . . . . . . Parts Repaired . | . . . . . . . . . Time . | . . . . . . . . . Parts Recycled . | . . . . . . . . . Recycled Matter . | . . . . . . . . . Retrieved Matter . | . . . . . . . . . Retrieved Components . | . . . . . . . . . Parts Scanalyzed 1 | . . . . . 1 . . . Part Schematics Acquired 1 | . . . . . 1 . . . Parts Damaged . | . . . . . . . . . Bothacking | -11 -10 -10 -10 -9 -8 -8 -8 -7 ------------ Run | Scr Mat Min Exi Min Mat Gar Mat Fac Used RIF Installer 1 | . . . . . . 1 . . Robots Hacked . | . . . . . . . . . Non-combat . | . . . . . . . . . Combat . | . . . . . . . . . Robot Hacks Applied . | . . . . . . . . . Relay Couplers Released . | . . . . . . . . . Robots Rewired . | . . . . . . . . . Allies Hacked . | . . . . . . . . . Hacks Repelled . | . . . . . . . . . Allies | -11 -10 -10 -10 -9 -8 -8 -8 -7 -------- Run | Scr Mat Min Exi Min Mat Gar Mat Fac Total Allies 3 | . . . . 3 . . . . Largest Group 3 | . . . . 3 3 . . . Highest-Rated Group 40 | . . . . 40 40 . . . Highest-Rated Ally 16 | . . . . 16 16 . . . Total Orders . | . . . . . . . . . Ally Attacks 19 | . . . . 14 5 . . . Total Damage 224 | . . . . 162 62 . . . Kills 7 | . . . . 7 . . . . Allies Corrupted . | . . . . . . . . . Allies Melted . | . . . . . . . . . Intel | -11 -10 -10 -10 -9 -8 -8 -8 -7 ------- Run | Scr Mat Min Exi Min Mat Gar Mat Fac Robot Analysis Total . | . . . . . . . . . Derelict Logs Recovered 1 | . . . . 1 . . . . Drone Launches . | . . . . . . . . . Drone Recoveries . | . . . . . . . . . Exploration | -11 -10 -10 -10 -9 -8 -8 -8 -7 ------------- Run | Scr Mat Min Exi Min Mat Gar Mat Fac Turns Passed 5589 | 69 525 72 599 1376 1476 415 400 657 Spaces Moved 2471 | 38 283 45 346 496 577 192 167 327 Core 3 | 3 . . . . . . . . Treads 2069 | 35 283 45 346 496 427 192 166 79 Legs 399 | . . . . . 150 . 1 248 Wheels . | . . . . . . . . . Hover . | . . . . . . . . . Flight . | . . . . . . . . . Fastest Speed 50 | 50 160 160 160 200 150 180 183 150 Average Speed 188 | 151 160 160 164 239 189 190 193 164 Slowest Speed 390 | 160 160 160 200 240 240 200 390 330 Overloaded Moves . | . . . . . . . . . Propulsion Burnouts . | . . . . . . . . . Robots Hopped . | . . . . . . . . . Cave-ins Triggered . | . . . . . . . . . Exploration Rate (%) 31 | 5 32 13 62 78 34 35 16 8 Regions Visited 8 Branch Regions 3 Pre-discovered Areas 2 | . . . 1 1 . . . . Known Exits Taken 1 | . . . . . 1 . . . Unknown Exits Taken 6 | 1 1 1 1 1 . . 1 . Scrap Searched 2 | . . 1 . 1 . . . . Spaces Dug . | . . . . . . . . . Terrain Destroyed 71 | . . . . . 64 7 . . Melee . | . . . . . . . . . Projectile 2 | . . . . . 2 . . . AOE 69 | . . . . . 62 7 . . Terrain Rammed . | . . . . . . . . . Walls Destroyed . | . . . . . . . . . Machines Disabled . | . . . . . . . . . Actions | -11 -10 -10 -10 -9 -8 -8 -8 -7 --------- Run | Scr Mat Min Exi Min Mat Gar Mat Fac Total 3160 | 47 317 46 379 650 890 215 205 411 Wait 391 | . . . . 113 225 4 15 34 Move 2462 | 37 282 44 345 495 576 190 166 327 Hop . | . . . . . . . . . Pick Up 65 | 4 8 1 15 8 16 1 . 12 Fast Attach 28 | 6 2 . 5 3 7 . 1 4 Attach 20 | . . . 2 1 8 3 2 4 Detach 3 | . 1 . 1 . . . . 1 Swap 13 | . . . . . 8 1 1 3 Drop 37 | . 1 1 11 . 14 . . 10 Fire 128 | . 23 . . 27 32 12 18 16 Melee . | . . . . . . . . . Ram . | . . . . . . . . . Kick . | . . . . . . . . . Crush 9 | . . . . 3 4 . 2 . Escape Stasis 4 | . . . . . . 4 . . Rewire . | . . . . . . . . . Trap . | . . . . . . . . . Miscellaneous . | . . . . . . . . . Route ------- -11/Scrapyard -10/Materials -10/Mines -10/Exiles (discovered 2 exits: [*Min x2]) -9/Mines -8/Materials -8/Garrison -8/Materials -7/Factory History --------- Turn | Location | Event 16 | -11/Scrapyard | Discovered new exit (range 16) 70 | -11/Scrapyard | Entered Materials 313 | -10/Materials | Build established: Mutant 537 | -10/Materials | Discovered new exit (range 9) 595 | -10/Materials | Entered Mines 643 | -10/Mines | Found a damaged Exp. Sensor Array with a note attached 647 | -10/Mines | Found Prototype Device 658 | -10/Mines | Deemed a non-threat by the Exiles lab entrance 659 | -10/Mines | Discovered new exit (range 5) 667 | -10/Mines | Entered Exiles 720 | -10/Exiles | Discovered new exit (range 15) 749 | -10/Exiles | Met 8R-AWN 778 | -10/Exiles | Met EX-HEX 823 | -10/Exiles | Met EX-BIN 859 | -10/Exiles | Aligned with FarCom system 861 | -10/Exiles | Given EX-Vault access code 936 | -10/Exiles | Opened EX-Vault 952 | -10/Exiles | Found Prototype Processor 957 | -10/Exiles | Found Prototype Device 961 | -10/Exiles | Found Prototype Energy Cannon 961 | -10/Exiles | Identified Firepult 1016 | -10/Exiles | Exiles lab attacked by MAIN.C 1088 | -10/Exiles | Learned location of Zion (-6) 1248 | -10/Exiles | Discovered new exit (range 11) 1266 | -10/Exiles | Stole three prototypes: Firepult, Modified TNC, Cloak of Protection 1266 | -10/Exiles | Entered Mines 1465 | -9/Mines | Build established: Hauler-Mutant 1711 | -9/Mines | Assisted by bots powering up and referring to "LRC-V3" 1911 | -9/Mines | Learned location of Storage (-7) 1960 | -9/Mines | Assembled infested the area 2615 | -9/Mines | Discovered new exit (range 9) 2642 | -9/Mines | Entered Materials 2642 | -8/Materials | Accompanied by 3 allies 2642 | -8/Materials | Evolved 4 slots: Propulsion x2, Weapon x2 2950 | -8/Materials | Build established: Scavenger-Skirmisher 3448 | -8/Materials | Lost 4 parts (2n2w) 3813 | -8/Materials | Build established: Hauler-Mutant 4115 | -8/Materials | Identified exit to Garrison 4118 | -8/Materials | Entered Garrison 4288 | -8/Garrison | Triggered checkpoint 4317 | -8/Garrison | Build established: Hauler-Skirmisher 4334 | -8/Garrison | Triggered checkpoint 4377 | -8/Garrison | Lost 4 parts (1p3n) 4407 | -8/Garrison | Discovered new exit (range 8) 4430 | -8/Garrison | Installed Relay Interface Framework 4533 | -8/Garrison | Entered Materials 4665 | -8/Materials | Build established: Scavenger-Skirmisher 4922 | -8/Materials | Discovered new exit (range 5) 4933 | -8/Materials | Entered Factory 4933 | -7/Factory | Evolved 2 slots: Propulsion x1, Utility x1 4935 | -7/Factory | FarCom data flow suspended 5399 | -7/Factory | Build established: Hauler-Gunner 5590 | -7/Factory | Self-destructed Last Messages --------------- 05499_ Repair Station disabled. 05502_ P-60 Hacker destroyed. 05502_ Slug penetrates Wall. 05503_ ALERT: Hostiles spotted, dispatching reinforcements to Terminal F017. 05507_ Acquired 36 matter. 05519_ Dropped Core Shielding. 05523_ Acquired Imp. Reclamation Unit. 05544_ K-01 Serf collects debris. 05546_ Slug penetrates Wall. 05550_ Y-54 Guardian system terminally corrupted. 05550_ Gatling Laser fried. 05550_ Imp. Heat Sink fried. 05551_ K-01 Serf collects debris. 05555_ K-01 Serf cleans the Scanalyzer. 05557_ Acquired 48 matter. 05564_ K-01 Serf cleans the Scanalyzer. 05576_ G-47 Trooper destroyed. 05576_ Slug penetrates Terminal. 05579_ K-01 Serf cleans the Scanalyzer. 05583_ Acquired 36 matter. Map ----- +----------------------------------------------------+ | ?????????????????????????????????????????????????? | | ?????????????????????????????????????????????????? | | ?????????????????????????????????????????????????? | | ?????????????????????????????????????????????????? | | ?????????????????????????????????????????????????? | | ?????????????????????????????????????????????????? | | ?????????????????????????????????????????????????? | | ?????????????????????????????????????????????????? | | ?????????????????????????????????????????????????? | | ?????????????????????????????????????????????????? | | ??????????????????????? ??????????????????????? | | ??????????????????????? ??????????????????????? | | ??????????????????????? ??????????????????????? | | ??????????????????????? ??????????????????????? | | ??????????????????????? g??????????????????????? | | ?????????????????? ?? g?????????????????????? | | ????????????????# " ??????????????????????? | | ????????????????# " ?????????????????????? | | ????????????????# " ?????????????????????? | | ????????????????# " #????????????????????? | | ????????????????# " ""#????????????????????? | | ????????????????# " ""#????????????????????? | | ??????????? # !!! " T"#????????????????????? | | ???????????? ! u !!! " ""#????????????????????? | | ????????????????# !!! " ""#????????????????????? | | ????????????????# @ #????????????????????? | | ????????????????# g #????????????????????? | | ????????????????# ######=#????????????????????? | | ????????????????# ???????#%#????????????????????? | | ??????????????????????????#[#????????????????????? | | ???????????????????????####+######???????????????? | | ???????????????????????# #???????????????? | | ???????????????????????#""" #???????????????? | | ???????????????????????#""" ]]] #???????????????? | | ???????????????????????#"S ]] #???????????????? | | ???????????????????????#""" ]] #???????????????? | | ???????????????????????# "" #???????????????? | | ???????????????????????# !##??????????????? | | ???????????????? ????# =%#??????????????? | | ???????????????? ??#####+######??????????????? | | ??????????????? #### #?????????????????? | | ??????????????? #?????????????????? | | ?????????????? #?????????????????? | | ???????????????"" #?????????????????? | | ???????????????"Y #?????????????????? | | ???????????????"" ##?????????????????? | | ?????????????? !#############??????? | | ?????????????? # ??????? | | ?????????????? # """ ""??????? | | ????????????#? """" """" # "R" """?????? | +----------------------------------------------------+ Best States ------------- Heat Dissipation 34 Energy Generation 14 Energy Capacity 250 Matter Stores 300 Matter Capacity 300 Sight Range 16 Terrain Scan Density 10 Evasion (%) 40 Targeting Accuracy 5 Recoil Reduction 3 Item Schematics ----------------- Humpback | -8/Materials | Scanalyzed Robot Schematics ------------------ None Fabricated ------------ Nothing Alien Tech Used ----------------- None Achievements -------------- Librarian Challenges ------------ None Game ------ Seed ProcessingNodeRifle Manual? 0 Play Time 00:57:18 Cumulative 19.6 hours Start 2020.11.14 @ 15:11:17 End 2020.11.15 @ 00:12:58 Sessions 5 Manual Loads 0 Difficulty Rogue Special Mode Halloween2020/ForbiddenLore Game No. 29 Rogue 29 Adventurer 0 Explorer 0 Win Type - Total 0 Types 0/0/0/0/0/0/0/0/0 Lore% 17 Gallery% 27 Achievement% 16 Wizard Run 0 Options --------- ASCII 1 Keyboard 1 Movement Numpad Keybinds 0 Fullscreen 2 Font 12/Smallcaps Map View 83x54 Tactical HUD 1 Map Filters NONE Filters NONE Steam 1 RUN: 46f94c34-4c17-4797-ad28-2bc1be01f0c6